[Event "MČR v bleskovém šachu družstev 2019"]
[Site "Teplice, Czech Republic"]
[Date "2019.09.14"]
[Round "15.28"]
[White "Skacelik, Petr"]
[Black "Routner, Jakub"]
[Result "1-0"]
[TimeControl "3 mim. + 2 s"]
[WhiteFideId "307904"]
[BlackFideId "322245"]
[WhiteElo "2078"]
[BlackElo "2138"]

1. d4 {[%clk 00:03:02]} {[%emt 00:00:02]} Nf6 {[%clk 00:03:03]} {[%emt
00:00:01]} 2. c4 {[%clk 00:03:04]} e6 {[%clk 00:03:04]} 3. Nc3 {[%clk
00:03:05]} {[%emt 00:00:02]} Bb4 {[%clk 00:03:05]} {[%emt 00:00:01]} 4. Qc2
{[%clk 00:03:06]} c5 {[%clk 00:03:02]} {[%emt 00:00:06]} 5. dxc5 {[%clk
00:03:08]} {[%emt 00:00:01]} O-O {[%clk 00:02:58]} {[%emt 00:00:05]} 6. Nf3
{[%clk 00:03:09]} Bxc5 {[%clk 00:02:57]} {[%emt 00:00:04]} 7. Bg5 {[%clk
00:03:09]} {[%emt 00:00:01]} Be7 {[%clk 00:02:44]} {[%emt 00:00:16]} 8. Rd1
{[%clk 00:03:08]} {[%emt 00:00:03]} a6 {[%clk 00:02:38]} {[%emt 00:00:07]} 9.
e3 {[%clk 00:03:10]} {[%emt 00:00:02]} Qc7 {[%clk 00:02:33]} {[%emt 00:00:06]}
10. Be2 {[%clk 00:03:08]} {[%emt 00:00:03]} b6 {[%clk 00:02:32]} {[%emt
00:00:03]} 11. O-O {[%clk 00:03:07]} {[%emt 00:00:04]} Bb7 {[%clk 00:02:33]} 12.
b3 {[%clk 00:02:53]} {[%emt 00:00:17]} d6 {[%clk 00:02:24]} {[%emt 00:00:10]}
13. Rc1 {[%clk 00:02:52]} {[%emt 00:00:04]} Nbd7 {[%clk 00:02:23]} {[%emt
00:00:03]} 14. Rfd1 {[%clk 00:02:52]} {[%emt 00:00:01]} Rac8 {[%clk 00:02:21]}
{[%emt 00:00:04]} 15. Nd4 {[%clk 00:02:41]} {[%emt 00:00:14]} Rfd8 {[%clk
00:02:17]} {[%emt 00:00:06]} 16. f3 {[%clk 00:02:29]} {[%emt 00:00:14]} h6
{[%clk 00:02:14]} {[%emt 00:00:06]} 17. Bh4 {[%clk 00:02:30]} Nf8 {[%clk
00:02:06]} {[%emt 00:00:09]} 18. Bd3 {[%clk 00:02:20]} {[%emt 00:00:12]} Qb8
{[%clk 00:01:57]} {[%emt 00:00:10]} 19. Ne4 {[%clk 00:02:06]} {[%emt 00:00:17]}
N8d7 {[%clk 00:01:41]} {[%emt 00:00:18]} 20. Nxf6+ {[%clk 00:02:02]} {[%emt
00:00:06]} Bxf6 {[%clk 00:01:39]} {[%emt 00:00:04]} 21. Bg3 {[%clk 00:01:50]}
{[%emt 00:00:14]} Be5 {[%clk 00:01:27]} {[%emt 00:00:13]} 22. f4 {[%clk
00:01:45]} {[%emt 00:00:08]} Bf6 {[%clk 00:01:27]} {[%emt 00:00:01]} 23. Qf2
{[%clk 00:01:40]} {[%emt 00:00:08]} Nc5 {[%clk 00:01:25]} {[%emt 00:00:05]} 24.
Bb1 {[%clk 00:01:38]} {[%emt 00:00:03]} Ne4 {[%clk 00:01:25]} {[%emt 00:00:03]}
25. Qe1 {[%clk 00:01:23]} {[%emt 00:00:16]} Nxg3 {[%clk 00:01:15]} {[%emt
00:00:12]} 26. Qxg3 {[%clk 00:01:25]} Qa8 {[%clk 00:01:09]} {[%emt 00:00:07]}
27. Re1 {[%clk 00:01:10]} {[%emt 00:00:17]} Be4 {[%clk 00:01:10]} {[%emt
00:00:01]} 28. Bxe4 {[%clk 00:01:10]} {[%emt 00:00:03]} Qxe4 {[%clk 00:01:10]}
29. Qf3 {[%clk 00:01:10]} {[%emt 00:00:02]} Qxf3 {[%clk 00:01:06]} {[%emt
00:00:06]} 30. Nxf3 {[%clk 00:01:11]} {[%emt 00:00:01]} d5 {[%clk 00:00:53]}
{[%emt 00:00:14]} 31. cxd5 {[%clk 00:01:12]} {[%emt 00:00:02]} Rxc1 {[%clk
00:00:51]} {[%emt 00:00:04]} 32. Rxc1 {[%clk 00:01:13]} Rxd5 {[%clk 00:00:52]}
{[%emt 00:00:02]} 33. Kf2 {[%clk 00:01:14]} {[%emt 00:00:02]} g6 {[%clk
00:00:40]} {[%emt 00:00:14]} 34. Ke2 {[%clk 00:01:13]} {[%emt 00:00:02]} Be7
{[%clk 00:00:40]} {[%emt 00:00:02]} 35. Rc6 {[%clk 00:01:11]} {[%emt 00:00:04]}
Bc5 {[%clk 00:00:40]} {[%emt 00:00:02]} 36. b4 {[%clk 00:01:09]} {[%emt
00:00:05]} Bxb4 {[%clk 00:00:36]} {[%emt 00:00:05]} 37. Rxb6 {[%clk 00:01:09]}
a5 {[%clk 00:00:36]} {[%emt 00:00:02]} 38. Nd4 {[%clk 00:01:07]} {[%emt
00:00:04]} Bc5 {[%clk 00:00:37]} {[%emt 00:00:01]} 39. Rb8+ {[%clk 00:01:08]}
{[%emt 00:00:02]} Kg7 {[%clk 00:00:38]} {[%emt 00:00:02]} 40. Nb3 {[%clk
00:01:05]} {[%emt 00:00:04]} Bb4 {[%clk 00:00:33]} {[%emt 00:00:07]} 41. Ra8
{[%clk 00:01:04]} {[%emt 00:00:03]} Kf6 {[%clk 00:00:32]} {[%emt 00:00:03]} 42.
e4 {[%clk 00:01:01]} {[%emt 00:00:05]} Rb5 {[%clk 00:00:26]} {[%emt 00:00:07]}
43. h3 {[%clk 00:01:00]} {[%emt 00:00:05]} e5 {[%clk 00:00:21]} {[%emt
00:00:06]} 44. a4 {[%clk 00:00:57]} {[%emt 00:00:05]} Rb6 {[%clk 00:00:17]}
{[%emt 00:00:06]} 45. Nxa5 {[%clk 00:00:56]} {[%emt 00:00:03]} exf4 {[%clk
00:00:14]} {[%emt 00:00:05]} 46. Nc4 {[%clk 00:00:55]} {[%emt 00:00:03]} Rc6
{[%clk 00:00:13]} {[%emt 00:00:02]} 47. Kd3 {[%clk 00:00:57]} Rc7 {[%clk
00:00:13]} {[%emt 00:00:03]} 48. a5 {[%clk 00:00:57]} {[%emt 00:00:01]} Rd7+
{[%clk 00:00:14]} {[%emt 00:00:01]} 49. Kc2 {[%clk 00:00:55]} {[%emt 00:00:04]}
Rd4 {[%clk 00:00:15]} {[%emt 00:00:02]} 50. Kb3 {[%clk 00:00:56]} {[%emt
00:00:01]} Be1 {[%clk 00:00:15]} {[%emt 00:00:01]} 51. Re8 {[%clk 00:00:55]}
{[%emt 00:00:03]} Rd7 {[%clk 00:00:14]} {[%emt 00:00:03]} 52. Ka4 {[%clk
00:00:55]} {[%emt 00:00:01]} Rd4 {[%clk 00:00:15]} {[%emt 00:00:02]} 53. Kb5
{[%clk 00:00:56]} {[%emt 00:00:01]} Rd1 {[%clk 00:00:16]} 54. a6 {[%clk
00:00:57]} Rb1+ {[%clk 00:00:17]} {[%emt 00:00:01]} 55. Kc6 {[%clk 00:00:59]}
{[%emt 00:00:02]} Rb4 {[%clk 00:00:15]} {[%emt 00:00:03]} 56. Nb6 {[%emt
00:00:05]} Bf2 {[%clk 00:00:13]} {[%emt 00:00:02]} 57. Nd5 {[%clk 00:00:59]}
{[%emt 00:00:01]} 1-0